[Event "*** Titled Tuesday 3|2 Blitz"]
[Site "Chess.com"]
[Date "2016.01.05"]
[Round "5"]
[White "tac49"]
[Black "TheMagician"]
[Result "1-0"]
[WhiteElo "2430"]
[BlackElo "2166"]
[TimeControl "180+2"]
[EndTime "17:59:13 PST"]
[Termination "tac49 won by resignation"]

1. e4 {[%clk 0:03:00.2]} 1... c5 {[%clk 0:03:00.3]} 2. Nc3 {[%clk 0:02:59.9]}
2... g6 {[%clk 0:02:51.9]} 3. Nf3 {[%clk 0:03:01.8]} 3... Bg7 {[%clk 0:02:53]}
4. d4 {[%clk 0:03:02.4]} 4... cxd4 {[%clk 0:02:53.7]} 5. Nxd4 {[%clk 0:03:04.3]}
5... d6 {[%clk 0:02:55]} 6. Be3 {[%clk 0:03:04.9]} 6... Nf6 {[%clk 0:02:56.1]}
7. f3 {[%clk 0:03:05.5]} 7... O-O {[%clk 0:02:56.1]} 8. Qd2 {[%clk 0:03:06.4]}
8... Nc6 {[%clk 0:02:57.4]} 9. Bc4 {[%clk 0:03:05.2]} 9... Bd7 {[%clk
0:02:50.4]} 10. O-O-O {[%clk 0:03:05]} 10... Ne5 {[%clk 0:02:44.4]} 11. Bb3
{[%clk 0:03:03.7]} 11... Rc8 {[%clk 0:02:45.6]} 12. Kb1 {[%clk 0:03:03.6]} 12...
Nc4 {[%clk 0:02:46.4]} 13. Bxc4 {[%clk 0:03:04]} 13... Rxc4 {[%clk 0:02:47.7]}
14. g4 {[%clk 0:03:02.9]} 14... h5 {[%clk 0:02:14.4]} 15. gxh5 {[%clk
0:02:53.1]} 15... Nxh5 {[%clk 0:02:15.2]} 16. Rhg1 {[%clk 0:02:54.1]} 16... a6
{[%clk 0:01:59.1]} 17. Nd5 {[%clk 0:02:53.4]} 17... Bc6 {[%clk 0:01:52.5]} 18.
b3 {[%clk 0:02:49]} 18... Bxd5 {[%clk 0:01:52.5]} 19. exd5 {[%clk 0:02:42.8]}
19... Rc5 {[%clk 0:01:47.2]} 20. Nf5 {[%clk 0:02:43.4]} 20... Bc3 {[%clk
0:01:21.3]} 21. Qd3 {[%clk 0:02:23.4]} 21... Rc7 {[%clk 0:01:17.2]} 22. Nh6+
{[%clk 0:02:19.6]} 1-0

[Event "*** Titled Tuesday 3|2 Blitz"]
[Site "Chess.com"]
[Date "2016.01.05"]
[Round "5"]
[White "LADIESGET2KNOWME"]
[Black "StellarChessPro"]
[Result "1-0"]
[WhiteElo "2309"]
[BlackElo "2237"]
[TimeControl "180+2"]
[EndTime "17:59:47 PST"]
[Termination "LADIESGET2KNOWME won by resignation"]

1. d4 {[%clk 0:03:01.9]} 1... d5 {[%clk 0:03:00.8]} 2. Nf3 {[%clk 0:03:03]} 2...
c6 {[%clk 0:03:02.1]} 3. g3 {[%clk 0:03:04.3]} 3... Nf6 {[%clk 0:03:03.3]} 4.
Bg2 {[%clk 0:03:06.2]} 4... Ne4 {[%clk 0:03:04.6]} 5. O-O {[%clk 0:03:08.1]}
5... e6 {[%clk 0:03:03.9]} 6. c4 {[%clk 0:03:09.5]} 6... Nd7 {[%clk 0:03:04]} 7.
Nc3 {[%clk 0:03:10.9]} 7... f5 {[%clk 0:03:04]} 8. Bf4 {[%clk 0:03:10.5]} 8...
Be7 {[%clk 0:03:03.8]} 9. Ne5 {[%clk 0:03:10.9]} 9... Nxe5 {[%clk 0:03:04.4]}
10. Bxe5 {[%clk 0:03:12.2]} 10... O-O {[%clk 0:03:04]} 11. Nxe4 {[%clk
0:03:13.5]} 11... fxe4 {[%clk 0:03:04.4]} 12. f3 {[%clk 0:03:13.8]} 12... exf3
{[%clk 0:03:03.8]} 13. exf3 {[%clk 0:03:13.5]} 13... c5 {[%clk 0:02:56.1]} 14.
cxd5 {[%clk 0:03:08.1]} 14... exd5 {[%clk 0:02:55.7]} 15. f4 {[%clk 0:03:09.1]}
15... Be6 {[%clk 0:02:50.3]} 16. dxc5 {[%clk 0:03:03.6]} 16... Bxc5+ {[%clk
0:02:49.5]} 17. Kh1 {[%clk 0:03:04.8]} 17... Qd7 {[%clk 0:02:47.7]} 18. Rc1
{[%clk 0:03:04]} 18... Rac8 {[%clk 0:02:46.5]} 19. Qd3 {[%clk 0:03:01]} 19...
Rfd8 {[%clk 0:02:22.8]} 20. f5 {[%clk 0:02:37.1]} 20... Bf7 {[%clk 0:02:21.8]}
21. f6 {[%clk 0:02:37.9]} 21... g6 {[%clk 0:02:18.9]} 22. Bd4 {[%clk 0:02:39.1]}
22... b6 {[%clk 0:02:18.3]} 23. Bxc5 {[%clk 0:02:33]} 23... bxc5 {[%clk
0:02:18.9]} 24. Qe3 {[%clk 0:02:34]} 24... d4 {[%clk 0:02:17.7]} 25. Qh6 {[%clk
0:02:34.8]} 25... Bd5 {[%clk 0:01:49]} 26. Rce1 {[%clk 0:02:28.5]} 26... Re8
{[%clk 0:01:44.8]} 27. Kg1 {[%clk 0:02:16.7]} 27... Rxe1 {[%clk 0:01:08.2]} 28.
Bxd5+ {[%clk 0:02:15.3]} 28... Kh8 {[%clk 0:01:07.1]} 29. Rxe1 {[%clk
0:02:13.6]} 29... d3 {[%clk 0:00:58.9]} 30. Re7 {[%clk 0:02:12.8]} 1-0

[Event "*** Titled Tuesday 3|2 Blitz"]
[Site "Chess.com"]
[Date "2016.01.05"]
[Round "5"]
[White "RitchieBlackmore"]
[Black "Hikaru"]
[Result "0-1"]
[WhiteElo "2461"]
[BlackElo "2891"]
[TimeControl "180+2"]
[EndTime "18:00:02 PST"]
[Termination "Hikaru won by resignation"]

1. d4 {[%clk 0:02:49.4]} 1... Nf6 {[%clk 0:02:58.5]} 2. Nf3 {[%clk 0:02:50.6]}
2... e6 {[%clk 0:02:57.2]} 3. Bg5 {[%clk 0:02:51.4]} 3... d5 {[%clk 0:02:56]} 4.
Bxf6 {[%clk 0:02:52.3]} 4... gxf6 {[%clk 0:02:55.6]} 5. e3 {[%clk 0:02:53.5]}
5... Nd7 {[%clk 0:02:55.7]} 6. c3 {[%clk 0:02:54.6]} 6... c6 {[%clk 0:02:55.9]}
7. Nbd2 {[%clk 0:02:55.8]} 7... f5 {[%clk 0:02:57.4]} 8. Bd3 {[%clk 0:02:54.9]}
8... Bd6 {[%clk 0:02:58.3]} 9. g3 {[%clk 0:02:56.2]} 9... b6 {[%clk 0:02:58.5]}
10. Qc2 {[%clk 0:02:57.1]} 10... Bb7 {[%clk 0:02:58.8]} 11. c4 {[%clk 0:02:57]}
11... Rc8 {[%clk 0:02:55.6]} 12. O-O {[%clk 0:02:54.2]} 12... h5 {[%clk
0:02:41.9]} 13. h4 {[%clk 0:02:42.1]} 13... a6 {[%clk 0:02:41.7]} 14. Rae1
{[%clk 0:02:41.4]} 14... b5 {[%clk 0:02:42.7]} 15. c5 {[%clk 0:02:37.3]} 15...
Bb8 {[%clk 0:02:42.5]} 16. Bxf5 {[%clk 0:02:36.8]} 16... exf5 {[%clk 0:02:43.4]}
17. Qxf5 {[%clk 0:02:38.4]} 17... Qf6 {[%clk 0:02:44.1]} 18. Qd3 {[%clk
0:02:36.8]} 18... Qg6 {[%clk 0:02:39]} 19. e4 {[%clk 0:02:32.1]} 19... O-O
{[%clk 0:02:40.2]} 20. Qe3 {[%clk 0:02:20.8]} 20... Rce8 {[%clk 0:02:38.9]} 21.
Qg5 {[%clk 0:02:21.6]} 21... Qxg5 {[%clk 0:02:32.7]} 22. Nxg5 {[%clk 0:02:21]}
22... f6 {[%clk 0:02:27.9]} 23. Ngf3 {[%clk 0:02:19]} 23... Bc7 {[%clk
0:02:24.8]} 24. exd5 {[%clk 0:01:58.7]} 24... cxd5 {[%clk 0:02:25.4]} 25. c6
{[%clk 0:01:58.8]} 25... Bxc6 {[%clk 0:02:23.3]} 26. Rc1 {[%clk 0:01:59.7]}
26... Re6 {[%clk 0:02:17.9]} 27. Rfe1 {[%clk 0:02:00.6]} 27... Rxe1+ {[%clk
0:02:18.4]} 28. Nxe1 {[%clk 0:01:59.6]} 28... Nb8 {[%clk 0:02:19.7]} 29. Nd3
{[%clk 0:01:58.1]} 29... Bd6 {[%clk 0:02:19.4]} 30. Nb3 {[%clk 0:01:56.5]} 30...
Bd7 {[%clk 0:02:14.8]} 31. Nbc5 {[%clk 0:01:57.1]} 31... Rc8 {[%clk 0:02:03.2]}
32. Re1 {[%clk 0:01:53.8]} 32... Kf7 {[%clk 0:01:57.9]} 33. Nxd7 {[%clk
0:01:13.3]} 33... Nxd7 {[%clk 0:01:57.6]} 0-1

[Event "*** Titled Tuesday 3|2 Blitz"]
[Site "Chess.com"]
[Date "2016.01.05"]
[Round "5"]
[White "kharposh"]
[Black "Alliswell998"]
[Result "0-1"]
[WhiteElo "2082"]
[BlackElo "2064"]
[TimeControl "180+2"]
[EndTime "18:00:35 PST"]
[Termination "Alliswell998 won by resignation"]

1. e4 {[%clk 0:03:01.9]} 1... c5 {[%clk 0:03:00.8]} 2. Nf3 {[%clk 0:03:03.2]}
2... d6 {[%clk 0:03:00.7]} 3. d4 {[%clk 0:03:04.5]} 3... cxd4 {[%clk 0:03:02.6]}
4. Nxd4 {[%clk 0:03:05.9]} 4... Nf6 {[%clk 0:03:04.3]} 5. Nc3 {[%clk 0:03:07.2]}
5... a6 {[%clk 0:03:05.9]} 6. Bc4 {[%clk 0:03:07.5]} 6... e6 {[%clk 0:03:06.9]}
7. Bb3 {[%clk 0:03:07.9]} 7... Nbd7 {[%clk 0:03:08.1]} 8. f4 {[%clk 0:03:08.2]}
8... Nc5 {[%clk 0:03:09.5]} 9. f5 {[%clk 0:03:08.4]} 9... Be7 {[%clk 0:03:09.2]}
10. O-O {[%clk 0:03:05.2]} 10... Bd7 {[%clk 0:03:05.5]} 11. Kh1 {[%clk
0:03:02.4]} 11... O-O {[%clk 0:03:05.1]} 12. Qe1 {[%clk 0:02:47]} 12... Qc7
{[%clk 0:03:03.7]} 13. Bg5 {[%clk 0:02:36.1]} 13... b5 {[%clk 0:02:59.3]} 14.
fxe6 {[%clk 0:02:20.4]} 14... fxe6 {[%clk 0:02:59.9]} 15. Nf5 {[%clk 0:02:20.8]}
15... Bd8 {[%clk 0:02:51.7]} 16. Nxd6 {[%clk 0:02:05.3]} 16... Nxb3 {[%clk
0:02:37.8]} 17. axb3 {[%clk 0:02:03.1]} 17... Qxd6 {[%clk 0:02:38]} 18. e5
{[%clk 0:02:04.1]} 18... Qc5 {[%clk 0:02:39.1]} 19. b4 {[%clk 0:01:52.5]} 19...
Qxb4 {[%clk 0:02:38.8]} 20. exf6 {[%clk 0:01:53.2]} 20... Bxf6 {[%clk
0:02:32.4]} 21. Bxf6 {[%clk 0:01:53.6]} 21... Rxf6 {[%clk 0:02:33.2]} 22. Rxf6
{[%clk 0:01:54]} 22... gxf6 {[%clk 0:02:35.1]} 23. Ne4 {[%clk 0:01:47.6]} 23...
Qxb2 {[%clk 0:02:29.3]} 24. Nc5 {[%clk 0:01:33.1]} 24... Bc8 {[%clk 0:02:02.4]}
25. Rd1 {[%clk 0:01:29.6]} 25... Qe5 {[%clk 0:01:57.5]} 26. Rd8+ {[%clk
0:01:25.4]} 26... Kf7 {[%clk 0:01:54.8]} 27. Ne4 {[%clk 0:01:13.7]} 27... Bb7
{[%clk 0:01:22.2]} 28. Nd6+ {[%clk 0:01:12.3]} 28... Ke7 {[%clk 0:01:22.5]} 29.
Qxe5 {[%clk 0:01:12.1]} 29... fxe5 {[%clk 0:01:22.8]} 30. Nf7 {[%clk 0:00:58.3]}
30... Rxd8 {[%clk 0:01:21.3]} 0-1

[Event "*** Titled Tuesday 3|2 Blitz"]
[Site "Chess.com"]
[Date "2016.01.05"]
[Round "5"]
[White "LyonBeast"]
[Black "1stSecond"]
[Result "1-0"]
[WhiteElo "2756"]
[BlackElo "2487"]
[TimeControl "180+2"]
[EndTime "18:01:06 PST"]
[Termination "LyonBeast won by resignation"]

1. g3 {[%clk 0:03:01.9]} 1... Nf6 {[%clk 0:03:00.8]} 2. Bg2 {[%clk 0:03:03.8]}
2... g6 {[%clk 0:03:02.7]} 3. e4 {[%clk 0:03:04.2]} 3... d6 {[%clk 0:03:03.6]}
4. d4 {[%clk 0:03:01.5]} 4... Bg7 {[%clk 0:03:04.1]} 5. Ne2 {[%clk 0:03:00.3]}
5... O-O {[%clk 0:03:05.2]} 6. O-O {[%clk 0:03:01.7]} 6... c6 {[%clk 0:03:06.8]}
7. h3 {[%clk 0:03:00.3]} 7... a5 {[%clk 0:03:03.3]} 8. Re1 {[%clk 0:03:00.6]}
8... Na6 {[%clk 0:02:59.7]} 9. Nd2 {[%clk 0:02:47.1]} 9... e5 {[%clk 0:02:53.8]}
10. dxe5 {[%clk 0:02:46.5]} 10... dxe5 {[%clk 0:02:54.5]} 11. Nc4 {[%clk
0:02:45.8]} 11... Qc7 {[%clk 0:02:55.4]} 12. Be3 {[%clk 0:02:38.8]} 12... Rd8
{[%clk 0:02:50.3]} 13. Qc1 {[%clk 0:02:20.5]} 13... c5 {[%clk 0:02:51.1]} 14.
Bg5 {[%clk 0:02:19]} 14... b5 {[%clk 0:02:45.9]} 15. Ne3 {[%clk 0:02:12.3]}
15... Be6 {[%clk 0:02:43.3]} 16. Nc3 {[%clk 0:02:12.5]} 16... Rdb8 {[%clk
0:02:16.5]} 17. a4 {[%clk 0:01:57.6]} 17... b4 {[%clk 0:02:16.6]} 18. Ncd5
{[%clk 0:01:58]} 18... Bxd5 {[%clk 0:02:12.4]} 19. exd5 {[%clk 0:01:58.9]} 19...
h6 {[%clk 0:02:12.8]} 20. Bxf6 {[%clk 0:01:59.1]} 20... Bxf6 {[%clk 0:02:14.1]}
21. d6 {[%clk 0:01:57]} 21... Qxd6 {[%clk 0:02:14.3]} 22. Bxa8 {[%clk
0:01:58.3]} 22... Rxa8 {[%clk 0:02:15.8]} 23. Qd1 {[%clk 0:01:59.7]} 23... Qe6
{[%clk 0:02:14]} 24. Qd5 {[%clk 0:01:56.7]} 24... Rd8 {[%clk 0:02:08.7]} 25.
Qxe6 {[%clk 0:01:56.9]} 25... fxe6 {[%clk 0:02:10.6]} 26. Rad1 {[%clk
0:01:58.1]} 26... Rd4 {[%clk 0:02:08.4]} 27. c3 {[%clk 0:01:58.5]} 27... Rxd1
{[%clk 0:02:01]} 28. Rxd1 {[%clk 0:01:58.3]} 28... e4 {[%clk 0:01:53]} 29. Rd6
{[%clk 0:01:56.7]} 29... Nc7 {[%clk 0:01:53.6]} 30. Ng4 {[%clk 0:01:55.5]} 30...
Bg7 {[%clk 0:01:36.5]} 31. Rd8+ {[%clk 0:01:54.1]} 31... Kh7 {[%clk 0:01:23.7]}
32. Rd7 {[%clk 0:01:49.9]} 32... Ne8 {[%clk 0:01:08.4]} 33. Re7 {[%clk
0:01:44.6]} 33... h5 {[%clk 0:01:09.4]} 34. Rxe8 {[%clk 0:01:38.3]} 34... hxg4
{[%clk 0:01:09.7]} 35. Rxe6 {[%clk 0:01:34.3]} 35... bxc3 {[%clk 0:01:06.8]} 36.
bxc3 {[%clk 0:01:35.8]} 36... Bxc3 {[%clk 0:00:57.6]} 37. hxg4 {[%clk
0:01:35.3]} 37... Kg7 {[%clk 0:00:58.9]} 38. Rxe4 {[%clk 0:01:34.8]} 38... Kf6
{[%clk 0:00:58.4]} 39. Kf1 {[%clk 0:01:35.7]} 1-0

[Event "*** Titled Tuesday 3|2 Blitz"]
[Site "Chess.com"]
[Date "2016.01.05"]
[Round "5"]
[White "Cecile_Haussernot"]
[Black "chess4life23"]
[Result "0-1"]
[WhiteElo "2183"]
[BlackElo "2173"]
[TimeControl "180+2"]
[EndTime "18:02:17 PST"]
[Termination "chess4life23 won by checkmate"]

1. e4 {[%clk 0:03:01.9]} 1... c5 {[%clk 0:02:58.2]} 2. Nf3 {[%clk 0:03:02.1]}
2... d6 {[%clk 0:02:59.2]} 3. d4 {[%clk 0:03:03]} 3... cxd4 {[%clk 0:03:00.2]}
4. Nxd4 {[%clk 0:03:04.6]} 4... Nf6 {[%clk 0:03:01.5]} 5. Nc3 {[%clk 0:03:05.7]}
5... a6 {[%clk 0:03:02.6]} 6. h3 {[%clk 0:03:05.9]} 6... e5 {[%clk 0:02:56]} 7.
Nde2 {[%clk 0:03:06.4]} 7... Be6 {[%clk 0:02:41.2]} 8. g4 {[%clk 0:03:06.2]}
8... h6 {[%clk 0:02:29.8]} 9. Bg2 {[%clk 0:03:06.5]} 9... Nbd7 {[%clk
0:02:30.2]} 10. O-O {[%clk 0:03:06.7]} 10... Be7 {[%clk 0:02:21.1]} 11. f4
{[%clk 0:03:02.6]} 11... exf4 {[%clk 0:02:21.1]} 12. Bxf4 {[%clk 0:03:01.1]}
12... Ne5 {[%clk 0:02:17]} 13. Nd5 {[%clk 0:02:48.5]} 13... Bxd5 {[%clk
0:01:40.1]} 14. exd5 {[%clk 0:02:45.1]} 14... Nfd7 {[%clk 0:01:27.1]} 15. Nd4
{[%clk 0:02:39]} 15... g6 {[%clk 0:01:22.8]} 16. b3 {[%clk 0:02:28.5]} 16... Bf6
{[%clk 0:01:22.9]} 17. c4 {[%clk 0:02:27.3]} 17... Qb6 {[%clk 0:01:14.4]} 18.
Be3 {[%clk 0:02:24]} 18... Qc7 {[%clk 0:01:07.1]} 19. Qd2 {[%clk 0:02:16.3]}
19... Bg7 {[%clk 0:01:07.7]} 20. Rae1 {[%clk 0:02:15.2]} 20... h5 {[%clk
0:00:37.4]} 21. Bg5 {[%clk 0:02:03.8]} 21... hxg4 {[%clk 0:00:35.3]} 22. hxg4
{[%clk 0:02:05.7]} 22... O-O {[%clk 0:00:22.5]} 23. Re4 {[%clk 0:01:52.5]} 23...
Rfe8 {[%clk 0:00:22.1]} 24. Be3 {[%clk 0:01:52]} 24... f6 {[%clk 0:00:21.5]} 25.
g5 {[%clk 0:01:52.3]} 25... f5 {[%clk 0:00:20.2]} 26. Rh4 {[%clk 0:01:52.7]}
26... Nc5 {[%clk 0:00:20.8]} 27. b4 {[%clk 0:01:53.4]} 27... Ne4 {[%clk
0:00:18.7]} 28. Bxe4 {[%clk 0:01:52.5]} 28... fxe4 {[%clk 0:00:20.6]} 29. Rxe4
{[%clk 0:01:40.2]} 29... Nxc4 {[%clk 0:00:21.3]} 30. Qd3 {[%clk 0:01:41.2]}
30... Nxe3 {[%clk 0:00:21.6]} 31. Qxe3 {[%clk 0:01:40.6]} 31... Rxe4 {[%clk
0:00:23.3]} 32. Qxe4 {[%clk 0:01:41.9]} 32... Qb6 {[%clk 0:00:24.9]} 33. Rd1
{[%clk 0:01:37.3]} 33... Rf8 {[%clk 0:00:20.8]} 34. Rd2 {[%clk 0:01:34.8]} 34...
Qxb4 {[%clk 0:00:20.9]} 35. Qe6+ {[%clk 0:01:35.3]} 35... Rf7 {[%clk 0:00:21.8]}
36. Qe8+ {[%clk 0:01:31.2]} 36... Rf8 {[%clk 0:00:22.3]} 37. Qe6+ {[%clk
0:01:31.5]} 37... Rf7 {[%clk 0:00:21.1]} 38. Qe3 {[%clk 0:01:32.4]} 38... Qb1+
{[%clk 0:00:18.7]} 39. Kh2 {[%clk 0:01:25.2]} 39... Be5+ {[%clk 0:00:15.7]} 40.
Kh3 {[%clk 0:01:22.1]} 40... Qh1+ {[%clk 0:00:14.8]} 41. Kg4 {[%clk 0:01:13]}
41... Qh5# {[%clk 0:00:15.5]} 0-1

[Event "*** Titled Tuesday 3|2 Blitz"]
[Site "Chess.com"]
[Date "2016.01.05"]
[Round "5"]
[White "ChessChronicles123"]
[Black "LePatronn"]
[Result "0-1"]
[WhiteElo "1690"]
[BlackElo "1827"]
[TimeControl "180+2"]
[EndTime "18:02:17 PST"]
[Termination "LePatronn won by resignation"]

1. Nf3 {[%clk 0:03:01.9]} 1... c5 {[%clk 0:02:58.5]} 2. g3 {[%clk 0:03:02.5]}
2... Nf6 {[%clk 0:02:59.5]} 3. Bg2 {[%clk 0:03:03.3]} 3... g6 {[%clk 0:03:01.1]}
4. O-O {[%clk 0:03:04.9]} 4... Bg7 {[%clk 0:03:02.7]} 5. c4 {[%clk 0:03:06.6]}
5... O-O {[%clk 0:03:03.3]} 6. Nc3 {[%clk 0:03:08.1]} 6... Nc6 {[%clk
0:03:04.3]} 7. d3 {[%clk 0:03:09.4]} 7... d5 {[%clk 0:03:04.9]} 8. a3 {[%clk
0:03:09.6]} 8... d4 {[%clk 0:03:05.6]} 9. Nb1 {[%clk 0:03:07.1]} 9... e5 {[%clk
0:03:05.4]} 10. Bg5 {[%clk 0:03:06.7]} 10... h6 {[%clk 0:03:03.1]} 11. Bxf6
{[%clk 0:03:07.5]} 11... Bxf6 {[%clk 0:03:02.8]} 12. Nbd2 {[%clk 0:03:08.7]}
12... Bg7 {[%clk 0:03:03.4]} 13. Rb1 {[%clk 0:03:03.5]} 13... a5 {[%clk
0:03:03.2]} 14. Nb3 {[%clk 0:03:01.4]} 14... Qe7 {[%clk 0:03:00.9]} 15. e4
{[%clk 0:02:53.6]} 15... a4 {[%clk 0:02:57.1]} 16. Na1 {[%clk 0:02:51.4]} 16...
Bd7 {[%clk 0:02:53]} 17. Nc2 {[%clk 0:02:52.7]} 17... Na5 {[%clk 0:02:52.1]} 18.
Nd2 {[%clk 0:02:53.5]} 18... b5 {[%clk 0:02:48]} 19. f4 {[%clk 0:02:51.8]} 19...
bxc4 {[%clk 0:02:47]} 20. Nxc4 {[%clk 0:02:50.8]} 20... Nxc4 {[%clk 0:02:47.8]}
21. dxc4 {[%clk 0:02:51.5]} 21... Be6 {[%clk 0:02:45.9]} 22. Qd3 {[%clk
0:02:50.3]} 22... Rab8 {[%clk 0:02:42]} 23. f5 {[%clk 0:02:39.2]} 23... Rb3
{[%clk 0:02:40.8]} 24. Qe2 {[%clk 0:02:39.4]} 24... d3 {[%clk 0:02:40.8]} 25.
Qd2 {[%clk 0:02:35.6]} 25... dxc2 {[%clk 0:02:36.5]} 26. Qxc2 {[%clk 0:02:35.2]}
26... Bd7 {[%clk 0:02:27.6]} 27. Rf2 {[%clk 0:02:26.7]} 27... g5 {[%clk
0:02:22.8]} 28. f6 {[%clk 0:02:22]} 28... Bxf6 {[%clk 0:02:20.7]} 29. Rbf1
{[%clk 0:02:23.5]} 29... Bg7 {[%clk 0:02:21.5]} 30. h3 {[%clk 0:02:15.9]} 30...
f6 {[%clk 0:02:22.2]} 31. Kh2 {[%clk 0:02:12.9]} 31... Rfb8 {[%clk 0:02:23.1]}
32. Qc1 {[%clk 0:02:09]} 32... Be6 {[%clk 0:02:23.1]} 33. Bf3 {[%clk 0:02:07.6]}
33... Qb7 {[%clk 0:02:20.4]} 34. Bd1 {[%clk 0:01:58.9]} 34... Rxb2 {[%clk
0:02:21]} 35. Bxa4 {[%clk 0:01:59.7]} 35... Rxf2+ {[%clk 0:02:17.1]} 36. Rxf2
{[%clk 0:02:00.1]} 36... Qc8 {[%clk 0:02:16]} 37. Rd2 {[%clk 0:01:56.1]} 37...
Qa6 {[%clk 0:02:11.3]} 38. Bb5 {[%clk 0:01:55.3]} 38... Qc8 {[%clk 0:02:02]} 39.
Qd1 {[%clk 0:01:55.1]} 39... Qf8 {[%clk 0:01:54]} 40. Rd6 {[%clk 0:01:52.1]}
40... Bf7 {[%clk 0:01:52.2]} 41. g4 {[%clk 0:01:51.8]} 41... Kh7 {[%clk
0:01:46.8]} 42. a4 {[%clk 0:01:50.2]} 42... Qc8 {[%clk 0:01:46]} 43. a5 {[%clk
0:01:49.3]} 43... Bg6 {[%clk 0:01:33.1]} 44. Qd5 {[%clk 0:01:44.1]} 44... Qb7
{[%clk 0:01:30.6]} 45. Qxb7 {[%clk 0:01:30.6]} 45... Rxb7 {[%clk 0:01:30.8]} 46.
a6 {[%clk 0:01:31.9]} 46... Ra7 {[%clk 0:01:30.3]} 47. Rb6 {[%clk 0:01:25.5]}
47... Bxe4 {[%clk 0:01:29.5]} 48. Bc6 {[%clk 0:01:26.4]} 48... Bxc6 {[%clk
0:01:29.9]} 49. Rxc6 {[%clk 0:01:27]} 49... e4 {[%clk 0:01:28.6]} 50. Rb6 {[%clk
0:01:26.5]} 50... e3 {[%clk 0:01:28.4]} 51. Kg3 {[%clk 0:01:28]} 51... e2 {[%clk
0:01:27]} 52. Kf2 {[%clk 0:01:28.3]} 52... Re7 {[%clk 0:01:13.1]} 53. Ke1 {[%clk
0:01:28.9]} 53... f5 {[%clk 0:01:14.5]} 54. Rb7 {[%clk 0:01:29]} 54... Bc3+
{[%clk 0:01:15.1]} 55. Kf2 {[%clk 0:01:26.3]} 55... e1=Q+ {[%clk 0:01:15.6]} 56.
Kg2 {[%clk 0:01:27.1]} 56... Qe4+ {[%clk 0:01:12.4]} 0-1

[Event "*** Titled Tuesday 3|2 Blitz"]
[Site "Chess.com"]
[Date "2016.01.05"]
[Round "5"]
[White "Piccadilly123"]
[Black "Penguininja"]
[Result "0-1"]
[WhiteElo "1719"]
[BlackElo "2131"]
[TimeControl "180+2"]
[EndTime "18:02:28 PST"]
[Termination "Penguininja won on time"]

1. e4 {[%clk 0:03:01.9]} 1... e6 {[%clk 0:02:58.9]} 2. d4 {[%clk 0:03:02.6]}
2... d5 {[%clk 0:03:00.8]} 3. exd5 {[%clk 0:03:01.7]} 3... exd5 {[%clk
0:03:00.8]} 4. Bd3 {[%clk 0:03:02.5]} 4... c5 {[%clk 0:02:55.8]} 5. Nf3 {[%clk
0:03:00]} 5... Be7 {[%clk 0:02:51.9]} 6. O-O {[%clk 0:02:59.5]} 6... Nf6 {[%clk
0:02:51.5]} 7. c3 {[%clk 0:02:45.8]} 7... Nc6 {[%clk 0:02:50.1]} 8. dxc5 {[%clk
0:02:42.9]} 8... O-O {[%clk 0:02:46.9]} 9. Be3 {[%clk 0:02:38.5]} 9... Bg4
{[%clk 0:02:39.4]} 10. h3 {[%clk 0:02:37.4]} 10... Bh5 {[%clk 0:02:34.2]} 11.
Nbd2 {[%clk 0:02:37.8]} 11... a5 {[%clk 0:02:20.2]} 12. Qc2 {[%clk 0:02:38.2]}
12... a4 {[%clk 0:02:18.4]} 13. Nd4 {[%clk 0:02:33.7]} 13... Qa5 {[%clk
0:02:05.4]} 14. Nxc6 {[%clk 0:02:27]} 14... bxc6 {[%clk 0:02:07.3]} 15. c4
{[%clk 0:02:18.3]} 15... Bxc5 {[%clk 0:02:00.2]} 16. Bg5 {[%clk 0:02:17.1]}
16... Bg6 {[%clk 0:01:47.8]} 17. Bxf6 {[%clk 0:02:11.3]} 17... gxf6 {[%clk
0:01:26.9]} 18. cxd5 {[%clk 0:02:11.1]} 18... cxd5 {[%clk 0:01:26.6]} 19. Nf3
{[%clk 0:02:11.9]} 19... Bd6 {[%clk 0:01:23]} 20. Rfd1 {[%clk 0:02:05.6]} 20...
Rac8 {[%clk 0:01:18.2]} 21. Qd2 {[%clk 0:02:03]} 21... Qa7 {[%clk 0:01:10.4]}
22. Rac1 {[%clk 0:01:56.2]} 22... Rcd8 {[%clk 0:01:09.1]} 23. Qc3 {[%clk
0:01:30.3]} 23... Bg3 {[%clk 0:00:51.7]} 24. Qd4 {[%clk 0:00:27.4]} 24... Qxd4
{[%clk 0:00:40.4]} 25. Nxd4 {[%clk 0:00:28.2]} 25... Bf4 {[%clk 0:00:41.2]} 26.
Rc2 {[%clk 0:00:28.1]} 26... Rc8 {[%clk 0:00:31.9]} 27. g3 {[%clk 0:00:21.8]}
27... Be5 {[%clk 0:00:30.6]} 28. Nc6 {[%clk 0:00:07.1]} 28... Kg7 {[%clk
0:00:20.7]} 0-1